fUST/lending_fUST_20250321
["ID","MTS","AMOUNT","RATE_DAILY","PERIOD"]
[356494419,1742542244420,-252.57880821,0.000273,2]
[356494420,1742542244430,-502.46905455,0.000273,2]
[356494421,1742542244439,-153.20353027,0.000273,2]
[356494422,1742542244448,-501.02526281,0.000273,2]
[356494423,1742542244457,-501.14106398,0.000273,2]
[356494424,1742542244467,-500.0,0.000273,2]
[356494425,1742542244476,-291.82786206,0.000273,2]
[356494426,1742542244485,-500.88139017,0.000273,2]
[356494427,1742542244494,-501.97188432,0.000273,2]
[356494428,1742542244503,-500.0,0.000273,2]
[356494429,1742542244512,-501.19786516,0.000273,2]
[356494430,1742542244521,-418.09062016,0.000273,2]
[356494431,1742542244531,-500.0,0.000273,2]
[356494432,1742542244540,-500.0,0.000273,2]
[356494433,1742542244549,-154.29437136,0.000273,2]
[356494434,1742542244559,-160.18555003,0.000273,2]
[356494435,1742542244568,-505.470595,0.000273,2]
[356494436,1742542244577,-500.0,0.000273,2]
[356494437,1742542244586,-501.50120973,0.000273,2]
[356494438,1742542244596,-500.0,0.000273,2]
[356494439,1742542244606,-501.36792163,0.000273,2]
[356494440,1742542244615,-267.59217855,0.000273,2]
[356494441,1742542244624,-159.75371043,0.000273,2]
[356494442,1742542244634,-269.91274606,0.000273,2]
[356494443,1742542244643,-500.0,0.000273,2]
[356494444,1742542244653,-474.34974267,0.000273,2]
[356494445,1742542244663,-500.0,0.000273,2]
[356494446,1742542244674,-160.58683947,0.000273,2]
[356494447,1742542244684,-500.0,0.000273,2]
[356494448,1742542244693,-501.50096159,0.000273,2]
[356494449,1742542244703,-501.7335287,0.000273,2]
[356494450,1742542244712,-344.8452995,0.000273,2]
[356494451,1742542244722,-501.78009058,0.000273,2]
[356494452,1742542244731,-211.10031851,0.000273,2]
[356494453,1742542244742,-501.44817905,0.000273,2]
[356494454,1742542244751,-163.54460946,0.000273,2]
[356494455,1742542244761,-501.32335337,0.000273,2]
[356494456,1742542244770,-177.01552222,0.000273,2]
[356494457,1742542244779,-269.16134586,0.000273,2]
[356494458,1742542244788,-155.94580147,0.000273,2]
[356494459,1742542244797,-500.0,0.000273,2]
[356494460,1742542244807,-168.3888056,0.00027329,2]
[356494461,1742542244817,-522.85906775,0.0002735,2]
[356494462,1742542244826,-157.68665153,0.0002735,2]
[356494463,1742542244835,-206.38221705,0.0002735,2]
[356494464,1742542244845,-500.0,0.0002735,2]
[356494465,1742542244856,-151.0,0.0002735,7]
[356494466,1742542244865,-151.0,0.0002735,7]
[356494467,1742542244875,-1923.62438443,0.00027383,4]
[356494468,1742542244886,-225.22384,0.00027383,7]
[356494469,1742542244897,-151.0,0.00027383,2]
[356494470,1742542244906,-713.328327,0.0002739,7]
[356494471,1742542244916,-713.328327,0.0002739,7]
[356494472,1742542244927,-500.0,0.00027397,2]
[356494473,1742542244936,-500.0,0.00027397,2]
[356494474,1742542244946,-544.29219241,0.00027397,2]
[356494475,1742542244955,-236.727,0.00027397,30]
[356494476,1742542244967,-200.0,0.00027397,30]
[356494477,1742542244978,-300.0,0.00027397,30]
[356494478,1742542244988,-500.0,0.00027397,5]
[356494479,1742542244998,-501.00933596,0.000274,5]
[356494480,1742542245008,-500.0,0.000274,5]
[356494481,1742542245018,-500.77849313,0.000274,5]
[356494482,1742542245028,-151.0,0.000274,7]
[356494483,1742542245037,-20964.4977301,0.0002767,2]
[356494484,1742542245047,-151.0,0.0002767,2]
[356494485,1742542245057,-151.0,0.0002767,7]
[356494486,1742542245067,-305.04236144,0.0002768,5]
[356494487,1742542245078,-502.35085436,0.0002768,5]
[356494488,1742542245088,-537.4488581,0.0002768,5]
[356494489,1742542245097,-332.14197879,0.0002768,5]
[356494490,1742542245107,-834.1406796,0.00027726,2]
[356494491,1742542245117,-418.02116171,0.00027726,2]
[356494492,1742542245126,-12458.93820146,0.00027726,2]
[356494493,1742542245136,-160.0,0.00027726,2]
[356494494,1742542245145,-713.328327,0.00027726,7]
[356494495,1742542245154,-713.328327,0.00027726,7]
[356494496,1742542245164,-1923.62438443,0.00027831,4]
[356494497,1742542245175,-174.61919141,0.00027877,2]
[356494498,1742542245185,-404.00080194,0.0002789,2]
[356494499,1742542245194,-151.0,0.0002789,7]
[356494500,1742542245203,-151.0,0.0002789,7]
[356494501,1742542245213,-160.0,0.00028,3]
[356494502,1742542245223,-151.0,0.00028125,2]
[356494503,1742542245232,-150.71,0.00028125,2]
[356494504,1742542245242,-541.0,0.00028125,2]
[356494505,1742542245251,-1915.0,0.00028125,2]
[356494506,1742542245261,-2264.0,0.00028125,2]
[356494507,1742542245270,-410.917,0.00028125,2]
[356494508,1742542245279,-176.2305196,0.00028192,30]
[356494509,1742542245289,-309.5986867,0.00028219,30]
[356494510,1742542245298,-306.0,0.00028219,30]
[356494511,1742542245308,-1923.62438443,0.00028279,5]
[356494512,1742542245317,-1197.27993954,0.00028358,2]
[356494513,1742542245327,-181.08010149,0.00028425,2]
[356494514,1742542245337,-151.0,0.00028521,7]
[356494515,1742542245346,-151.0,0.00028521,7]
[356494516,1742542245356,-151.0,0.00028543,7]
[356494517,1742542245365,-416.66090984,0.00028543,2]
[356494518,1742542245374,-193.0,0.00028544,2]
[356494519,1742542245383,-1923.62438443,0.00028728,5]
[356494520,1742542245392,-1000.0,0.00028767,5]
[356494521,1742542245402,-713.328327,0.00028928,7]
[356494522,1742542245411,-713.328327,0.00028928,7]
[356494523,1742542245421,-151.0,0.00028928,2]
[356494524,1742542245430,-151.0,0.00028928,7]
[356494525,1742542245440,-41928.9954601,0.00028929,2]
[356494526,1742542245450,-151.0,0.00028931,7]
[356494527,1742542245460,-151.0,0.00028931,7]
[356494528,1742542245470,-867.0,0.00028939,2]
[356494529,1742542245479,-867.0,0.00028939,2]
[356494530,1742542245489,-867.0,0.00028939,2]
[356494531,1742542245498,-867.0,0.00028939,2]
[356494532,1742542245508,-867.0,0.00028939,2]
[356494533,1742542245517,-867.0,0.00028939,2]
[356494534,1742542245527,-867.0,0.00028939,2]
[356494535,1742542245536,-867.0,0.00028939,2]
[356494536,1742542245546,-867.0,0.00028939,2]
[356494537,1742542245556,-867.0,0.00028939,2]
[356494538,1742542245567,-867.0,0.00028939,2]
[356494539,1742542245577,-867.0,0.00028939,2]
[356494540,1742542245587,-867.0,0.00028939,2]
[356494541,1742542245598,-584.0,0.00028939,2]
[356494542,1742542245608,-584.0,0.00028939,2]
[356494543,1742542245619,-584.0,0.00028939,2]
[356494544,1742542245629,-584.0,0.00028939,2]
[356494545,1742542245638,-584.0,0.00028939,2]
[356494546,1742542245648,-584.0,0.00028939,2]
[356494547,1742542245658,-584.0,0.00028939,2]
[356494548,1742542245668,-584.0,0.00028939,2]
[356494549,1742542245683,-584.0,0.00028939,2]
[356494550,1742542245693,-584.0,0.00028939,2]
[356494551,1742542245703,-584.0,0.00028939,2]
[356494552,1742542245712,-584.0,0.00028939,2]
[356494553,1742542245722,-584.0,0.00028939,2]
[356494554,1742542245732,-867.0,0.00028939,2]
[356494555,1742542245743,-867.0,0.00028939,2]
[356494556,1742542245752,-867.0,0.00028939,2]
[356494557,1742542245762,-867.0,0.00028939,2]
[356494558,1742542245771,-867.0,0.00028939,2]
[356494559,1742542245781,-867.0,0.00028939,2]
[356494560,1742542245790,-867.0,0.00028939,2]
[356494561,1742542245800,-867.0,0.00028939,2]
[356494562,1742542245809,-867.0,0.00028939,2]
[356494563,1742542245819,-867.0,0.00028939,2]
[356494564,1742542245829,-867.0,0.00028939,2]
[356494565,1742542245838,-867.0,0.00028939,2]
[356494566,1742542245848,-867.0,0.00028939,2]
[356494567,1742542245858,-867.0,0.00028939,2]
[356494568,1742542245867,-584.0,0.00028939,2]
[356494569,1742542245877,-584.0,0.00028939,2]
[356494570,1742542245891,-584.0,0.00028939,2]
[356494571,1742542245901,-584.0,0.00028939,2]
[356494572,1742542245911,-584.0,0.00028939,2]
[356494573,1742542245922,-584.0,0.00028939,2]
[356494574,1742542245932,-584.0,0.00028939,2]
[356494575,1742542245942,-584.0,0.00028939,2]
[356494576,1742542245951,-584.0,0.00028939,2]
[356494577,1742542245961,-584.0,0.00028939,2]
[356494578,1742542245970,-584.0,0.00028939,2]
[356494579,1742542245980,-584.0,0.00028939,2]
[356494580,1742542245990,-584.0,0.00028939,2]
[356494581,1742542245999,-584.0,0.00028939,2]
[356494582,1742542246008,-160.0,0.00028939,7]
[356494583,1742542246018,-160.0,0.00028939,7]
[356494584,1742542246027,-834.1406796,0.00028939,7]
[356494585,1742542246036,-713.328327,0.00028939,7]
[356494586,1742542246046,-713.328327,0.00028939,7]
[356494587,1742542246056,-713.328327,0.00028939,7]
[356494588,1742542246066,-713.328327,0.00028939,7]
[356494590,1742542246076,-713.328327,0.00028939,7]
[356494591,1742542246085,-713.328327,0.00028939,7]
[356494592,1742542246094,-713.328327,0.00028939,7]
[356494593,1742542246103,-713.328327,0.00028939,7]
[356494594,1742542246113,-418.02116171,0.00028939,7]
[356494595,1742542246122,-151.0,0.00028939,2]
[356494596,1742542246131,-151.0,0.00028939,2]
[356494597,1742542246141,-151.0,0.00028939,7]
[356494598,1742542246151,-151.0,0.00028941,7]
[356494599,1742542246160,-151.0,0.00028941,7]
[356494600,1742542246170,-187.78006525,0.00028973,2]
[356494601,1742542246179,-502.02655416,0.00029,5]
[356494602,1742542246188,-500.0,0.00029,5]
[356494603,1742542246198,-500.0,0.00029,5]
[356494604,1742542246207,-505.2190647,0.00029,5]
[356494605,1742542246217,-500.0,0.00029,5]
[356494606,1742542246228,-200.8259,0.00029,7]
[356494607,1742542246237,-151.0,0.00029021,7]
[356494608,1742542246247,-151.0,0.00029021,7]
[356494609,1742542246256,-713.328327,0.00029097,7]
[356494610,1742542246265,-713.328327,0.00029097,7]
[356494611,1742542246275,-1923.62438443,0.00029176,5]
[356494612,1742542246285,-151.0,0.00029176,2]
[356494613,1742542246295,-194.72792766,0.00029521,2]
[356494614,1742542246304,-1923.62438443,0.00029624,5]
[356494615,1742542246314,-20964.4977301,0.0002996,2]
[356494616,1742542246323,-16217.20397123,0.0002997,2]
[356494617,1742542246333,-2868.51584947,0.0003,10]
[356494618,1742542246343,-201.93286099,0.00030069,2]
[356494619,1742542246353,-1923.62438443,0.00030072,5]
[356494620,1742542246363,-1500.0,0.00030137,5]
[356494621,1742542246372,-259.13273397,0.00030204,2]
[356494622,1742542246382,-324.361,0.00030383,26]
[356494623,1742542246392,-192.0,0.00030447,2]
[356494625,1742542246401,-1923.62438443,0.00030521,5]
[356494626,1742542246411,-309.65648719,0.00030617,2]
[356494627,1742542246420,-1923.62438443,0.00030969,5]
[356494628,1742542246430,-472.6,0.00031125,2]
[356494629,1742542246439,-402.742,0.00031125,2]
[356494630,1742542246448,-400.0,0.00031125,2]
[356494631,1742542246458,-687.844525,0.000313,10]
[356494632,1742542246467,-1923.62438443,0.00031417,6]
[356494633,1742542246477,-2000.0,0.00031507,5]
[356494634,1742542246486,-500.0,0.000318,10]
[356494635,1742542246496,-1923.62438443,0.00031866,6]
[356494636,1742542246506,-500.0,0.000323,10]
[356494637,1742542246516,-1923.62438443,0.00032314,6]
[356494638,1742542246525,-192.0,0.0003235,2]
[356494639,1742542246534,-1000.0,0.00032394,5]
[356494640,1742542246544,-150.500583,0.00032468,3]
[356494641,1742542246554,-159163.9498,0.000325,10]
[356494642,1742542246563,-239.65414924,0.00032547,2]
[356494643,1742542246573,-192.0,0.00032622,2]
[356494644,1742542246582,-151.0,0.00032624,7]
[356494645,1742542246592,-151.0,0.00032624,7]
[356494646,1742542246602,-713.328327,0.00032656,7]
[356494647,1742542246611,-713.328327,0.00032656,7]
[356494648,1742542246620,-20964.4977301,0.00032657,2]
[356494649,1742542246629,-1000.78106,0.0003266,2]
[356494650,1742542246639,-9222.89920291,0.00032667,3]
[356494651,1742542246648,-12458.93820146,0.00032667,3]
[356494652,1742542246658,-151.0,0.00032667,7]
[356494653,1742542246667,-256.082528,0.00032667,7]
[356494654,1742542246678,-322.99946924,0.0003268,15]
[356494655,1742542246687,-160.0,0.000327,3]
[356494656,1742542246696,-1923.62438443,0.00032762,6]
[356494657,1742542246706,-1000.0,0.00032779,5]
[356494658,1742542246715,-1000.0,0.00032779,5]
[356494659,1742542246725,-1000.0,0.00032779,5]
[356494660,1742542246735,-1000.0,0.00032779,5]
[356494661,1742542246744,-447.95004427,0.00032779,5]
[356494662,1742542246753,-1000.0,0.00032779,5]
[356494663,1742542246763,-1000.0,0.00032779,5]
[356494664,1742542246772,-1000.0,0.00032779,5]
[356494665,1742542246782,-1000.0,0.00032779,5]
[356494666,1742542246792,-1000.0,0.00032779,5]
[356494667,1742542246801,-1005.52,0.000328,4]
[356494668,1742542246811,-8061.14993826,0.000328,30]
[356494669,1742542246820,-576.262938,0.000328,16]
[356494670,1742542246829,-323.570344,0.000328,30]
[356494671,1742542246839,-160.0,0.000328,30]
[356494672,1742542246848,-834.1406796,0.000328,30]
[356494673,1742542246857,-713.328327,0.000328,7]
[356494674,1742542246866,-713.328318,0.000328,7]
[356494675,1742542246876,-500.0,0.000328,10]
[356494676,1742542246887,-151.0,0.00032829,7]
[356494677,1742542246897,-20964.4977301,0.00032866,2]
[356494678,1742542246906,-500.0,0.00032873,5]
[356494679,1742542246915,-549.7338682,0.00032873,5]
[356494680,1742542246925,-500.0,0.00032873,5]
[356494681,1742542246934,-500.0,0.00032873,5]
[356494682,1742542246943,-279.37323573,0.00032873,3]
[356494683,1742542246953,-500.0,0.00032873,5]
[356494684,1742542246964,-500.0,0.00032873,5]
[356494685,1742542246973,-500.0,0.00032873,5]
[356494686,1742542247264,-500.0,0.00032873,5]
[356494687,1742542247274,-500.0,0.00032873,5]
[356494688,1742542247283,-12458.93820146,0.00032876,7]
[356494689,1742542247293,-500.0,0.00032876,21]
[356494690,1742542247302,-500.0,0.00032876,21]
[356494691,1742542247311,-500.0,0.00032876,21]
[356494692,1742542247320,-500.0,0.00032876,21]
[356494693,1742542247329,-785.59,0.00032876,21]
[356494694,1742542247339,-1445.34,0.00032876,21]
[356494695,1742542247348,-500.0,0.00032876,21]
[356494696,1742542247357,-1103.03,0.00032876,21]
[356494697,1742542247367,-500.0,0.00032876,21]
[356494698,1742542247377,-500.0,0.00032876,21]
[356494699,1742542247386,-500.0,0.00032876,21]
[356494700,1742542247395,-500.0,0.00032876,21]
[356494701,1742542247405,-500.0,0.00032876,21]
[356494702,1742542247414,-500.0,0.00032876,21]
[356494703,1742542247425,-500.0,0.00032876,21]
[356494704,1742542247435,-560.81,0.00032876,21]
[356494705,1742542247444,-845.13,0.00032876,21]
[356494706,1742542247453,-200.0,0.00032876,7]
[356494707,1742542247463,-500.0,0.00032876,21]
[356494708,1742542247472,-500.0,0.00032876,21]
[356494709,1742542247482,-663.88,0.00032876,21]
[356494710,1742542247491,-500.0,0.00032876,21]
[356494711,1742542247501,-500.0,0.00032876,21]
[356494712,1742542247510,-500.0,0.00032876,21]
[356494713,1742542247519,-500.0,0.00032876,21]
[356494714,1742542247528,-500.0,0.00032876,21]
[356494715,1742542247538,-232.55766803,0.00032876,21]
[356494716,1742542247547,-529.14,0.00032876,21]
[356494717,1742542247557,-500.0,0.00032876,21]
[356494718,1742542247566,-684.55,0.00032876,21]
[356494719,1742542247575,-500.0,0.00032876,21]
[356494720,1742542247585,-500.0,0.00032876,21]
[356494721,1742542247595,-500.0,0.00032876,21]
[356494722,1742542247605,-500.0,0.00032876,21]
[356494723,1742542247615,-500.0,0.00032876,21]
[356494724,1742542247624,-500.0,0.00032876,21]
[356494725,1742542247634,-500.0,0.00032876,21]
[356494726,1742542247643,-636.47,0.00032876,21]
[356494727,1742542247653,-523.88972052,0.00032876,21]
[356494728,1742542247663,-500.0,0.00032876,21]
[356494729,1742542247673,-500.0,0.00032876,21]
[356494730,1742542247682,-1298.26,0.00032876,21]
[356494731,1742542247693,-500.0,0.00032876,21]
[356494732,1742542247702,-484.10696898,0.00032876,21]
[356494733,1742542247712,-615.89,0.00032876,21]
[356494734,1742542247722,-552.39,0.00032876,21]
[356494735,1742542247731,-716.76,0.00032876,21]
[356494736,1742542247741,-500.0,0.00032876,21]
[356494737,1742542247750,-1138.15,0.00032876,21]
[356494738,1742542247760,-508.64857535,0.00032876,7]
[356494739,1742542247770,-500.0,0.00032876,21]
[356494740,1742542247784,-500.0,0.00032876,21]
[356494741,1742542247794,-517.66800714,0.00032876,21]
[356494742,1742542247804,-500.0,0.00032876,21]
[356494743,1742542247814,-500.0,0.00032876,21]
[356494744,1742542247824,-500.0,0.00032876,21]
[356494745,1742542247833,-500.0,0.00032876,21]
[356494746,1742542247843,-500.0,0.00032876,21]
[356494747,1742542247853,-500.0,0.00032876,21]
[356494748,1742542247862,-500.0,0.00032876,21]
[356494749,1742542247873,-500.0,0.00032876,21]
[356494750,1742542247883,-614.46,0.00032876,21]
[356494751,1742542247896,-501.03515554,0.00032876,21]
[356494752,1742542247909,-586.39,0.00032876,21]
[356494753,1742542247919,-500.0,0.00032876,21]
[356494754,1742542247931,-500.0,0.00032876,21]
[356494755,1742542247941,-500.0,0.00032876,21]
[356494756,1742542247951,-624.29,0.00032876,21]
[356494757,1742542247961,-982.71,0.00032876,21]
[356494758,1742542247974,-859.5,0.00032876,21]
[356494759,1742542247984,-500.0,0.00032876,21]
[356494760,1742542247994,-1092.34,0.00032876,21]
[356494761,1742542248004,-962.99,0.00032876,21]
[356494762,1742542248015,-500.0,0.00032876,2]
[356494763,1742542248025,-500.0,0.00032876,21]
[356494764,1742542248036,-500.0,0.00032876,21]
[356494765,1742542248046,-500.0,0.00032876,21]
[356494766,1742542248056,-633.92,0.00032876,21]
[356494767,1742542248067,-500.0,0.00032876,21]
[356494768,1742542248078,-500.0,0.00032876,21]
[356494769,1742542248088,-500.0,0.00032876,21]
[356494770,1742542248098,-809.48,0.00032876,21]
[356494771,1742542248108,-500.0,0.00032876,21]
[356494772,1742542248117,-500.0,0.00032876,21]
[356494773,1742542248126,-500.0,0.00032876,21]
[356494774,1742542248136,-500.0,0.00032876,21]
[356494775,1742542248145,-500.0,0.00032876,21]
[356494776,1742542248154,-500.0,0.00032876,21]
[356494777,1742542248163,-387.87263278,0.00032876,21]
[356494778,1742542248173,-756.38,0.00032876,21]
[356494779,1742542248182,-549.52,0.00032876,21]
[356494780,1742542248192,-500.0,0.00032876,21]
[356494781,1742542248201,-500.0,0.00032876,21]
[356494782,1742542248211,-1430.12,0.00032876,21]
[356494783,1742542248220,-500.0,0.00032876,21]
[356494784,1742542248230,-500.0,0.00032876,21]
[356494785,1742542248239,-500.0,0.00032876,21]
[356494786,1742542248248,-502.24128341,0.00032876,21]
[356494787,1742542248258,-500.0,0.00032876,21]
[356494788,1742542248267,-873.22,0.00032876,21]
[356494789,1742542248277,-500.0,0.00032876,21]
[356494790,1742542248286,-501.04387304,0.00032876,21]
[356494791,1742542248296,-500.0,0.00032876,21]
[356494792,1742542248306,-500.0,0.00032876,21]
[356494793,1742542248315,-508.12676297,0.00032876,21]
[356494794,1742542248325,-554.94,0.00032876,21]
[356494795,1742542248334,-500.0,0.00032876,21]
[356494796,1742542248344,-500.0,0.00032876,120]
[356494797,1742542248353,-500.0,0.00032876,21]
[356494798,1742542248363,-1622.52,0.00032876,21]
[356494799,1742542248372,-500.0,0.00032876,21]
[356494800,1742542248382,-500.0,0.00032876,21]
[356494801,1742542248392,-501.17895159,0.00032876,21]
[356494802,1742542248401,-979.36,0.00032876,21]
[356494803,1742542248411,-1410.19,0.00032876,21]
[356494804,1742542248420,-500.0,0.00032876,21]
[356494805,1742542248430,-1562.76,0.00032876,21]
[356494806,1742542248439,-500.0,0.00032876,21]
[356494807,1742542248449,-504.05234088,0.00032876,21]
[356494808,1742542248459,-500.0,0.00032876,21]
[356494809,1742542248468,-1696.35,0.00032876,21]
[356494810,1742542248478,-635.26,0.00032876,21]
[356494811,1742542248487,-665.12,0.00032876,21]
[356494812,1742542248497,-500.0,0.00032876,21]
[356494813,1742542248507,-500.0,0.00032876,21]
[356494814,1742542248516,-591.92,0.00032876,21]
[356494815,1742542248525,-500.0,0.00032876,21]
[356494816,1742542248535,-500.0,0.00032876,21]
[356494817,1742542248544,-500.0,0.00032876,21]
[356494818,1742542248554,-1389.28,0.00032876,21]
[356494819,1742542248563,-1194.67,0.00032876,21]
[356494820,1742542248573,-500.0,0.00032876,21]
[356494821,1742542248582,-500.0,0.00032876,21]
[356494822,1742542248592,-150.0,0.00032876,14]
[356494823,1742542248602,-150.0,0.00032876,14]
[356494824,1742542248611,-500.0,0.00032876,21]
[356494825,1742542248621,-1189.36,0.00032876,21]
[356494826,1742542248630,-500.0,0.00032876,21]
[356494827,1742542248639,-709.5,0.00032876,21]
[356494828,1742542248649,-1341.0,0.00032876,21]
[356494829,1742542248659,-710.17,0.00032876,21]
[356494830,1742542248668,-1239.08,0.00032876,21]
[356494831,1742542248679,-1038.41,0.00032876,21]
[356494832,1742542248689,-500.0,0.00032876,21]
[356494833,1742542248699,-500.0,0.00032876,21]
[356494834,1742542248709,-1243.73,0.00032876,21]
[356494835,1742542248719,-500.0,0.00032876,21]
[356494836,1742542248729,-500.0,0.00032876,21]
[356494837,1742542248738,-500.0,0.00032876,21]
[356494838,1742542248748,-500.0,0.00032876,21]
[356494839,1742542248758,-715.84,0.00032876,21]
[356494840,1742542248767,-1045.04,0.00032876,21]
[356494841,1742542248776,-600.7,0.00032876,21]
[356494842,1742542248786,-500.0,0.00032876,21]
[356494843,1742542248796,-500.0,0.00032876,21]
[356494844,1742542248806,-575.02,0.00032876,21]
[356494845,1742542248815,-634.25,0.00032876,21]
[356494846,1742542248826,-2629.29,0.00032876,21]
[356494847,1742542248835,-500.0,0.00032876,21]
[356494848,1742542248845,-500.0,0.00032876,21]
[356494849,1742542248855,-1990.38,0.00032876,21]
[356494850,1742542248864,-391.44639827,0.00032876,21]
[356494851,1742542248874,-500.0,0.00032876,21]
[356494852,1742542248886,-1452.8,0.00032876,21]
[356494853,1742542248898,-209.37392146,0.00032876,21]
[356494854,1742542248907,-570.6,0.00032876,21]
[356494855,1742542248917,-500.0,0.00032876,21]
[356494856,1742542248928,-1137.12,0.00032876,21]
[356494857,1742542248938,-500.0,0.00032876,21]
[356494858,1742542248948,-577.74,0.00032876,21]
[356494859,1742542248958,-1041.49,0.00032876,21]
[356494860,1742542248969,-1041.49,0.00032876,21]
[356494861,1742542248978,-1041.49,0.00032876,21]
[356494862,1742542248988,-1041.49,0.00032876,21]
[356494863,1742542248998,-1041.49,0.00032876,21]
[356494864,1742542249008,-1041.49,0.00032876,21]
[356494865,1742542249017,-1041.49,0.00032876,21]
[356494866,1742542249027,-1041.49,0.00032876,21]
[356494867,1742542249036,-1041.49,0.00032876,21]
[356494868,1742542249046,-1041.49,0.00032876,21]
[356494869,1742542249056,-1041.49,0.00032876,21]
[356494870,1742542249066,-1494.08,0.00032876,21]
[356494871,1742542249075,-500.0,0.00032876,21]
[356494872,1742542249086,-2651.47,0.00032876,21]
[356494873,1742542249095,-173.34330715,0.00032876,21]
[356494874,1742542249105,-1041.49,0.00032876,21]
[356494875,1742542249114,-1041.49,0.00032876,21]
[356494876,1742542249124,-1041.49,0.00032876,21]
[356494877,1742542249133,-1041.49,0.00032876,21]
[356494878,1742542249143,-1041.49,0.00032876,21]
[356494879,1742542249153,-1041.49,0.00032876,21]
[356494880,1742542249163,-1041.49,0.00032876,21]
[356494881,1742542249173,-1041.49,0.00032876,21]
[356494882,1742542249183,-1041.49,0.00032876,21]
[356494883,1742542249192,-1041.49,0.00032876,21]
[356494884,1742542249202,-1041.49,0.00032876,21]
[356494885,1742542249212,-1041.49,0.00032876,21]
[356494886,1742542249221,-1041.51694089,0.00032876,21]
[356494887,1742542249231,-562.83,0.00032876,21]
[356494888,1742542249241,-863.24,0.00032876,2]
[356494889,1742542249251,-863.24,0.00032876,2]
[356494890,1742542249261,-863.24,0.00032876,2]
[356494891,1742542249271,-863.24,0.00032876,2]
[356494892,1742542249281,-863.24,0.00032876,2]
[356494893,1742542249290,-863.24,0.00032876,2]
[356494894,1742542249300,-863.24,0.00032876,2]
[356494895,1742542249310,-863.24,0.00032876,2]
[356494896,1742542249319,-2919.33,0.00032876,21]
[356494897,1742542249329,-863.24,0.00032876,2]
[356494898,1742542249339,-1421.24,0.00032876,21]
[356494899,1742542249348,-863.24,0.00032876,2]
[356494900,1742542249358,-863.24,0.00032876,2]
[356494901,1742542249368,-863.24,0.00032876,2]
[356494902,1742542249378,-863.24,0.00032876,2]
[356494903,1742542249388,-863.24,0.00032876,2]
[356494904,1742542249397,-998.56,0.00032876,21]
[356494905,1742542249407,-863.24,0.00032876,2]
[356494906,1742542249416,-863.24,0.00032876,2]
[356494907,1742542249426,-863.24,0.00032876,2]
[356494908,1742542249435,-863.24,0.00032876,2]
[356494909,1742542249444,-863.24,0.00032876,2]
[356494910,1742542249453,-863.24,0.00032876,2]
[356494911,1742542249463,-863.24,0.00032876,2]
[356494912,1742542249472,-863.24,0.00032876,2]
[356494913,1742542249481,-500.0,0.00032876,21]
[356494914,1742542249492,-863.24,0.00032876,2]
[356494915,1742542249501,-863.29779509,0.00032876,2]
[356494916,1742542249511,-1062.54,0.00032876,21]
[356494917,1742542249521,-751.72,0.00032876,21]
[356494918,1742542249530,-500.0,0.00032876,21]
[356494919,1742542249540,-500.0,0.00032876,21]
[356494920,1742542249549,-500.0,0.00032876,21]